[Event "12th Senioren-Cup Tegernsee 2024"]
[Site "Rottach-Egern"]
[Date "2024.04.08"]
[Round "3.9"]
[White "Steiger, Michael"]
[Black "Wille, Thomas"]
[Result "1/2-1/2"]
[ECO "D02"]
[WhiteElo "1955"]
[BlackElo "2147"]
[Annotator "RC"]
[PlyCount "28"]
[EventDate "2024.04.02"]
[EventType "swiss"]
[EventCountry "GER"]
[SourceTitle "playchess.com"]
[Source "ChessBase"]
[SourceQuality "1"]
[TimeControl "7800+30"]

1. d4 {[%emt 0:00:04]} c5 {[%emt 0:00:57]} 2. c3 {[%emt 0:01:25]} e6 {[%emt 0:00:15]} 3. Nf3 {[%emt 0:00:55]} d5 {[%emt 0:01:21]} 4. Bf4 {[%emt 0:02:31]} Bd6 {[%emt 0:03:08]} 5. Bxd6 {[%emt 0:02:37]} Qxd6 {[%emt 0:00:06]} 6. dxc5 {[%emt 0:00:04]} Qxc5 {[%emt 0:00:12]} 7. Qd4 {[%emt 0:00:04]} Qxd4 {[%emt 0:00:55]} 8. cxd4 {[%emt 0:00:11]} f6 {[%emt 0:01:18]} 9. Nc3 {[%emt 0:01:20]} Bd7 {[%emt 0:00:37]} 10. e3 {[%emt 0:01:46]} Ne7 {[%emt 0:00:32]} 11. Rc1 {[%emt 0:07:09]} a6 {[%emt 0:02:19]} 12. a3 {[%emt 0:09:07]} Nf5 {[%emt 0:17:04]} 13. Bd3 {[%emt 0:24:27]} Nd6 {[%emt 0:00:05]} 14. b3 {[%emt 0:00:04]} Bc6 {[%emt 0:23:00]} 1/2-1/2

[Event "12th Senioren-Cup Tegernsee 2024"]
[Site "Rottach-Egern"]
[Date "2024.04.08"]
[Round "3.10"]
[White "Kannenberg, Karl-Heinz"]
[Black "Pollmann, Sascha"]
[Result "1-0"]
[ECO "A80"]
[WhiteElo "2108"]
[BlackElo "2061"]
[Annotator "RC"]
[PlyCount "103"]
[EventDate "2024.04.02"]
[EventType "swiss"]
[EventCountry "GER"]
[SourceTitle "playchess.com"]
[Source "ChessBase"]
[SourceQuality "1"]
[TimeControl "7800+30"]

1. d4 {[%emt 0:00:09]} f5 {[%emt 0:00:15]} 2. Nf3 {[%emt 0:00:15]} Nf6 {[%emt 0:00:22]} 3. Bf4 {[%emt 0:00:09]} g6 {[%emt 0:00:15]} 4. e3 {[%emt 0:01:31]} Bg7 {[%emt 0:00:22]} 5. c4 {[%emt 0:01:42]} d6 {[%emt 0:00:12]} 6. h3 {[%emt 0:02:06]} Ne4 {[%emt 0:04:31]} 7. Nbd2 {[%emt 0:02:26]} Nxd2 {[%emt 0:01:06]} 8. Qxd2 {[%emt 0:01:42]} O-O {[%emt 0:00:42]} 9. Be2 {[%emt 0:01:06]} Nd7 {[%emt 0:05:23]} 10. Rd1 {[%emt 0:03:06]} Nf6 {[%emt 0:05:32]} 11. O-O {[%emt 0:01:01]} e6 {[%emt 0:05:12]} 12. Qc2 {[%emt 0:02:44]} Bd7 {[%emt 0:03:25]} 13. Bh2 {[%emt 0:05:25]} Qe7 {[%emt 0:05:21]} 14. b4 {[%emt 1:54:08]} Kh8 {[%emt 0:21:49]} 15. a3 {[%emt 0:00:00]} Bc6 {[%emt 0:02:40]} 16. b5 {[%emt 0:00:00]} Be4 {[%emt 0:00:37]} 17. Qb3 {[%emt 0:00:00]} b6 {[%emt 0:01:04]} 18. Nd2 {[%emt 0:00:00]} Bb7 {[%emt 0:00:31]} 19. Bf3 {[%emt 0:00:00]} Bxf3 {[%emt 0:01:16]} 20. Nxf3 {[%emt 0:00:00]} Ne4 {[%emt 0:01:04]} 21. Nd2 {[%emt 0:00:00]} Nxd2 {[%emt 0:00:56]} 22. Rxd2 {[%emt 0:00:00]} g5 {[%emt 0:05:00]} 23. Qd1 {[%emt 0:00:00]} Rg8 {[%emt 0:09:52]} 24. c5 {[%emt 0:00:00]} dxc5 {[%emt 0:04:52]} 25. dxc5 {[%emt 0:00:00]} Qxc5 {[%emt 0:04:14]} 26. Rc2 {[%emt 0:00:00]} Qxb5 {[%emt 0:01:38]} 27. Rxc7 {[%emt 0:00:00]} Rad8 {[%emt 0:04:23]} 28. Qh5 {[%emt 0:00:00]} Rd7 {[%emt 0:00:38]} 29. Rxd7 {[%emt 0:00:00]} Qxd7 {[%emt 0:00:08]} 30. Qxg5 {[%emt 0:00:00]} Qd5 {[%emt 0:03:08]} 31. Bg3 {[%emt 0:00:00]} Be5 {[%emt 0:09:00]} 32. Bxe5+ {[%emt 0:00:00]} Qxe5 {[%emt 0:00:13]} 33. Qh4 {[%emt 0:00:00]} Qg7 {[%emt 0:06:15]} 34. g3 {[%emt 0:00:00]} e5 {[%emt 0:12:00]} 35. Rd1 {[%emt 0:00:00]} Qg5 {[%emt 0:07:28]} 36. Qxg5 {[%emt 0:00:00]} Rxg5 {[%emt 0:00:06]} 37. Rd5 {[%emt 0:00:00]} e4 {[%emt 0:01:05]} 38. h4 {[%emt 0:00:00]} Rh5 {[%emt 0:01:42]} 39. Rd8+ {[%emt 0:00:00]} Kg7 {[%emt 0:00:06]} 40. Rd7+ {[%emt 0:00:00]} Kf6 {[%emt 0:00:29]} 41. Rxa7 {[%emt 0:00:00]} Rh6 {[%emt 0:00:44]} 42. Kf1 {[%emt 0:00:00]} Kg6 {[%emt 0:02:59]} 43. Rb7 {[%emt 0:00:00]} Kh5 {[%emt 0:00:17]} 44. Rg7 {[%emt 0:00:00]} Rg6 {[%emt 0:01:38]} 45. Rxh7+ {[%emt 0:00:00]} Kg4 {[%emt 0:00:07]} 46. Kg2 {[%emt 0:00:00]} Rf6 {[%emt 0:04:19]} 47. a4 {[%emt 0:00:00]} Rg6 {[%emt 0:00:47]} 48. Rf7 {[%emt 0:00:00]} Rg8 {[%emt 0:01:45]} 49. Rf6 {[%emt 0:00:00]} Ra8 {[%emt 0:01:06]} 50. Rxb6 {[%emt 0:00:00]} Kh5 {[%emt 0:00:54]} 51. Rb5 {[%emt 0:00:00]} Rxa4 {[%emt 0:01:47]} 52. Rxf5+ {[%emt 0:00:00]} 1-0

[Event "12th Senioren-Cup Tegernsee 2024"]
[Site "Rottach-Egern"]
[Date "2024.04.09"]
[Round "4.1"]
[White "Schulz, Michael"]
[Black "Schneider-Zinner, Harald"]
[Result "1/2-1/2"]
[ECO "D33"]
[WhiteElo "2144"]
[BlackElo "2335"]
[Annotator "RC"]
[PlyCount "44"]
[EventDate "2024.04.02"]
[EventType "swiss"]
[EventCountry "GER"]
[SourceTitle "playchess.com"]
[Source "ChessBase"]
[SourceQuality "1"]
[TimeControl "7800+30"]

1. d4 {[%emt 0:00:12]} e6 {[%emt 0:00:50]} 2. c4 {[%emt 0:00:25]} d5 {[%emt 0:00:34]} 3. Nc3 {[%emt 0:00:32]} c5 {[%emt 0:00:31]} 4. cxd5 {[%emt 0:00:27]} exd5 {[%emt 0:00:05]} 5. Nf3 {[%emt 0:00:18]} Nf6 {[%emt 0:00:35]} 6. g3 {[%emt 0:00:10]} Nc6 {[%emt 0:00:21]} 7. Bg2 {[%emt 0:00:30]} cxd4 {[%emt 0:00:30]} 8. Nxd4 {[%emt 0:00:30]} Bc5 {[%emt 0:00:30]} 9. Nb3 {[%emt 0:00:30]} Bb6 {[%emt 0:00:30]} 10. O-O {[%emt 0:00:30]} d4 {[%emt 0:00:30]} 11. Na4 {[%emt 0:00:30]} O-O {[%emt 0:00:30]} 12. Bg5 {[%emt 0:00:30]} Re8 {[%emt 0:00:30]} 13. Re1 {[%emt 0:00:30]} Bg4 {[%emt 0:00:30]} 14. h3 {[%emt 0:00:30]} Bf5 {[%emt 0:00:30]} 15. Nac5 {[%emt 0:12:09]} Bxc5 {[%emt 0:29:35]} 16. Nxc5 {[%emt 0:00:08]} Qb6 {[%emt 0:00:17]} 17. Nd3 {[%emt 0:18:51]} Ne4 {[%emt 0:04:39]} 18. Bf4 {[%emt 0:00:22]} Nb4 {[%emt 0:06:39]} 19. Nxb4 {[%emt 0:09:30]} Qxb4 {[%emt 0:00:02]} 20. Qb3 {[%emt 0:01:01]} Qe7 {[%emt 0:06:43]} 21. Rac1 {[%emt 0:03:17]} Rac8 {[%emt 0:16:29]} 22. Qd5 {[%emt 0:02:42]} Qe6 {[%emt 0:16:07]} 1/2-1/2

[Event "12th Senioren-Cup Tegernsee 2024"]
[Site "Rottach-Egern"]
[Date "2024.04.09"]
[Round "4.3"]
[White "Lindam, Ingo"]
[Black "Marentini, Marcel"]
[Result "1-0"]
[ECO "C13"]
[WhiteElo "2160"]
[BlackElo "2102"]
[Annotator "RC"]
[PlyCount "53"]
[EventDate "2024.04.02"]
[EventType "swiss"]
[EventCountry "GER"]
[SourceTitle "playchess.com"]
[Source "ChessBase"]
[SourceQuality "1"]
[TimeControl "7800+30"]

1. d4 {[%emt 0:00:02]} e6 {[%emt 0:00:10]} 2. e4 {[%emt 0:03:04]} d5 {[%emt 0:00:11]} 3. Nc3 {[%emt 0:00:16]} dxe4 {[%emt 0:05:04]} 4. Nxe4 {[%emt 0:00:51]} Nf6 {[%emt 0:01:09]} 5. Bg5 {[%emt 0:05:10]} Be7 {[%emt 0:01:01]} 6. Bxf6 {[%emt 0:01:41]} Bxf6 {[%emt 0:00:24]} 7. Nf3 {[%emt 0:02:00]} O-O {[%emt 0:03:49]} 8. c3 {[%emt 0:16:53]} b6 {[%emt 0:02:32]} 9. Bd3 {[%emt 0:01:10]} Bb7 {[%emt 0:00:32]} 10. Qe2 {[%emt 0:05:18]} Nd7 {[%emt 0:01:08]} 11. O-O-O {[%emt 0:08:08]} Qe7 {[%emt 0:06:23]} 12. h4 {[%emt 0:04:33]} Rfe8 {[%emt 0:15:05]} 13. g4 {[%emt 0:04:52]} g6 {[%emt 0:00:12]} 14. h5 {[%emt 0:09:41]} e5 {[%emt 0:03:01]} 15. hxg6 {[%emt 0:00:38]} hxg6 {[%emt 0:00:10]} 16. d5 {[%emt 0:16:32]} Bxd5 {[%emt 0:03:58]} 17. Bc4 {[%emt 0:01:39]} Bxe4 {[%emt 0:11:43]} 18. Qxe4 {[%emt 0:00:32]} Kg7 {[%emt 0:00:28]} 19. Qe3 {[%emt 0:16:09]} g5 {[%emt 0:01:51]} 20. Qd3 {[%emt 0:16:08]} Nf8 {[%emt 0:01:50]} 21. Qe4 {[%emt 0:03:20]} Rad8 {[%emt 0:03:22]} 22. Nd2 {[%emt 0:05:20]} Ng6 {[%emt 1:17:27]} 23. Rhe1 {[%emt 0:06:54]} Qc5 {[%emt 0:00:00]} 24. Re3 {[%emt 0:00:58]} b5 {[%emt 0:00:00]} 25. Bb3 {[%emt 0:00:40]} a5 {[%emt 0:00:00]} 26. Qf5 {[%emt 0:03:56]} Nh4 {[%emt 0:00:00]} 27. Qxf6+ {[%emt 0:00:16]} 1-0

[Event "12th Senioren-Cup Tegernsee 2024"]
[Site "Rottach-Egern"]
[Date "2024.04.09"]
[Round "4.4"]
[White "Heinbuch, Detlef Ulrich"]
[Black "Mueller, Matthias-Michael"]
[Result "1-0"]
[ECO "D02"]
[WhiteElo "2273"]
[BlackElo "2307"]
[Annotator "RC"]
[PlyCount "178"]
[EventDate "2024.04.02"]
[EventType "swiss"]
[EventCountry "GER"]
[SourceTitle "playchess.com"]
[Source "ChessBase"]
[SourceQuality "1"]
[TimeControl "7800+30"]

1. c4 {[%emt 0:00:04]} e6 {[%emt 0:00:16]} 2. g3 {[%emt 0:00:24]} d5 {[%emt 0:00:20]} 3. Bg2 {[%emt 0:00:13]} Nf6 {[%emt 0:00:23]} 4. Nf3 {[%emt 0:00:45]} Bd6 {[%emt 0:00:55]} 5. O-O {[%emt 0:01:08]} O-O {[%emt 0:00:50]} 6. d4 {[%emt 0:02:26]} b6 {[%emt 0:02:00]} 7. cxd5 {[%emt 0:02:26]} exd5 {[%emt 0:00:10]} 8. Nc3 {[%emt 0:00:15]} Bb7 {[%emt 0:00:41]} 9. Qb3 {[%emt 0:14:31]} Re8 {[%emt 0:06:37]} 10. Bg5 {[%emt 0:04:54]} Nbd7 {[%emt 0:00:40]} 11. Rfd1 {[%emt 0:08:17]} h6 {[%emt 0:00:40]} 12. Bxf6 {[%emt 0:00:34]} Nxf6 {[%emt 0:00:13]} 13. e3 {[%emt 0:00:45]} c6 {[%emt 0:03:39]} 14. Rac1 {[%emt 0:04:55]} Qe7 {[%emt 0:04:14]} 15. a3 {[%emt 0:02:40]} Rac8 {[%emt 0:02:55]} 16. Qa4 {[%emt 0:04:51]} a5 {[%emt 0:01:49]} 17. Qb3 {[%emt 0:13:01]} b5 {[%emt 0:00:49]} 18. a4 {[%emt 0:02:53]} b4 {[%emt 0:00:28]} 19. Nb1 {[%emt 0:00:52]} Rc7 {[%emt 0:05:34]} 20. Nbd2 {[%emt 0:01:34]} Bc8 {[%emt 0:00:49]} 21. Qd3 {[%emt 0:04:09]} Ne4 {[%emt 0:02:18]} 22. Nb3 {[%emt 0:02:48]} Bf5 {[%emt 0:02:44]} 23. Qf1 {[%emt 0:02:53]} Ra8 {[%emt 0:07:53]} 24. Nfd2 {[%emt 0:02:49]} Nf6 {[%emt 0:03:00]} 25. Bh3 {[%emt 0:04:03]} Bg6 {[%emt 0:06:37]} 26. Nc5 {[%emt 0:06:41]} Qd8 {[%emt 0:02:03]} 27. Ndb3 {[%emt 0:02:08]} Re7 {[%emt 0:00:53]} 28. Qe1 {[%emt 0:05:41]} Qb6 {[%emt 0:02:06]} 29. Qd2 {[%emt 0:04:54]} Rae8 {[%emt 0:02:57]} 30. Re1 {[%emt 0:01:12]} h5 {[%emt 0:02:16]} 31. Qe2 {[%emt 0:01:59]} Ra8 {[%emt 0:02:47]} 32. Qf3 {[%emt 0:01:14]} Nh7 {[%emt 0:04:37]} 33. Qd1 {[%emt 0:02:24]} Nf6 {[%emt 0:01:33]} 34. Bf1 {[%emt 0:00:45]} h4 {[%emt 0:01:34]} 35. Bd3 {[%emt 0:02:20]} Bh5 {[%emt 0:00:26]} 36. Be2 {[%emt 0:00:38]} Bg6 {[%emt 0:00:10]} 37. Bf3 {[%emt 0:00:57]} Qd8 {[%emt 0:06:51]} 38. Qe2 {[%emt 0:01:31]} Bf5 {[%emt 0:04:55]} 39. Qf1 {[%emt 0:04:03]} Qc8 {[%emt 0:03:33]} 40. Qe2 {[%emt 0:02:39]} g6 {[%emt 0:03:40]} 41. Nd3 {[%emt 0:04:15]} Kg7 {[%emt 0:02:35]} 42. Ndc5 {[%emt 0:03:07]} Raa7 {[%emt 0:02:04]} 43. Nd2 {[%emt 0:02:00]} Re8 {[%emt 0:02:53]} 44. Nf1 {[%emt 0:00:50]} Bh3 {[%emt 0:03:55]} 45. Nd3 {[%emt 0:02:57]} Rc7 {[%emt 0:03:22]} 46. Rc2 {[%emt 0:03:12]} Bf5 {[%emt 0:02:42]} 47. Rec1 {[%emt 0:01:01]} Rh8 {[%emt 0:01:15]} 48. Rd2 {[%emt 0:02:00]} Ne4 {[%emt 0:03:28]} 49. Bxe4 {[%emt 0:04:30]} dxe4 {[%emt 0:01:19]} 50. Ne1 {[%emt 0:00:51]} Bg4 {[%emt 0:07:18]} 51. Qc4 {[%emt 0:00:02]} Be6 {[%emt 0:01:12]} 52. Qc2 {[%emt 0:00:16]} Bd5 {[%emt 0:00:25]} 53. f4 {[%emt 0:00:41]} g5 {[%emt 0:01:17]} 54. Rg2 {[%emt 0:01:16]} Kf8 {[%emt 0:03:31]} 55. fxg5 {[%emt 0:00:57]} Qe6 {[%emt 0:03:09]} 56. gxh4 {[%emt 0:01:49]} Rxh4 {[%emt 0:00:44]} 57. Qf2 {[%emt 0:00:53]} Rg4 {[%emt 0:01:55]} 58. h4 {[%emt 0:00:51]} Ke7 {[%emt 0:02:03]} 59. Rxg4 {[%emt 0:00:52]} Qxg4+ {[%emt 0:00:11]} 60. Ng2 {[%emt 0:00:01]} Kd7 {[%emt 0:02:25]} 61. Nh2 {[%emt 0:00:54]} Qh3 {[%emt 0:08:41]} 62. Nf4 {[%emt 0:00:06]} Bxf4 {[%emt 0:01:25]} 63. Qxf4 {[%emt 0:00:06]} Kc8 {[%emt 0:00:55]} 64. Qg4+ {[%emt 0:00:19]} Qxg4+ {[%emt 0:00:25]} 65. Nxg4 {[%emt 0:00:01]} Kb7 {[%emt 0:00:23]} 66. Nf6 {[%emt 0:00:51]} Bb3 {[%emt 0:00:48]} 67. Nxe4 {[%emt 0:00:11]} Kb6 {[%emt 0:00:24]} 68. Nc5 {[%emt 0:00:06]} Re7 {[%emt 0:00:48]} 69. Nxb3 {[%emt 0:02:11]} Rxe3 {[%emt 0:00:07]} 70. Nc5 {[%emt 0:00:04]} Rg3+ {[%emt 0:00:15]} 71. Kf2 {[%emt 0:01:59]} Rg4 {[%emt 0:00:08]} 72. Ke3 {[%emt 0:00:07]} Rxh4 {[%emt 0:00:21]} 73. Rf1 {[%emt 0:00:24]} Rh7 {[%emt 0:00:32]} 74. Ke4 {[%emt 0:00:17]} Kc7 {[%emt 0:00:21]} 75. Ke5 {[%emt 0:00:14]} Rg7 {[%emt 0:00:52]} 76. Rf5 {[%emt 0:00:26]} Rh7 {[%emt 0:00:35]} 77. b3 {[%emt 0:00:05]} Rg7 {[%emt 0:00:20]} 78. Kf6 {[%emt 0:00:06]} Rh7 {[%emt 0:00:07]} 79. Re5 {[%emt 0:00:18]} Rh4 {[%emt 0:01:05]} 80. Kxf7 {[%emt 0:00:16]} Rf4+ {[%emt 0:00:23]} 81. Ke7 {[%emt 0:00:26]} Kb6 {[%emt 0:01:01]} 82. Re4 {[%emt 0:00:14]} Rf2 {[%emt 0:00:26]} 83. Rg4 {[%emt 0:00:17]} Re2+ {[%emt 0:00:48]} 84. Kd7 {[%emt 0:00:23]} Rd2 {[%emt 0:02:07]} 85. g6 {[%emt 0:00:40]} Rf2 {[%emt 0:00:32]} 86. Ke7 {[%emt 0:00:36]} Re2+ {[%emt 0:00:17]} 87. Ne6 {[%emt 0:00:25]} c5 {[%emt 0:01:02]} 88. dxc5+ {[%emt 0:00:17]} Kc6 {[%emt 0:00:30]} 89. g7 {[%emt 0:00:20]} Kd5 {[%emt 0:01:39]} 1-0

[Event "12th Senioren-Cup Tegernsee 2024"]
[Site "Rottach-Egern"]
[Date "2024.04.09"]
[Round "4.5"]
[White "Schoetzig, Detlef"]
[Black "Cordts, Ingo"]
[Result "1/2-1/2"]
[ECO "D02"]
[WhiteElo "2068"]
[BlackElo "2225"]
[Annotator "RC"]
[PlyCount "23"]
[EventDate "2024.04.02"]
[EventType "swiss"]
[EventCountry "GER"]
[SourceTitle "playchess.com"]
[Source "ChessBase"]
[SourceQuality "1"]
[TimeControl "7800+30"]

1. d4 {[%emt 0:00:24]} d5 {[%emt 0:00:27]} 2. Nf3 {[%emt 0:00:23]} Nf6 {[%emt 0:00:08]} 3. Bf4 {[%emt 0:00:35]} c5 {[%emt 0:00:55]} 4. Nc3 {[%emt 0:03:08]} cxd4 {[%emt 0:02:23]} 5. Qxd4 {[%emt 0:00:57]} Nc6 {[%emt 0:02:29]} 6. Qd3 {[%emt 0:00:51]} d4 {[%emt 0:09:04]} 7. Nb5 {[%emt 0:09:21]} Nd5 {[%emt 0:03:08]} 8. e3 {[%emt 0:11:07]} Qa5+ {[%emt 0:24:21]} 9. Qd2 {[%emt 0:22:44]} Qxd2+ {[%emt 0:03:23]} 10. Kxd2 {[%emt 0:00:20]} dxe3+ {[%emt 0:01:28]} 11. fxe3 {[%emt 0:00:50]} Nxf4 {[%emt 0:08:21]} 12. exf4 {[%emt 0:03:48]} 1/2-1/2

[Event "12th Senioren-Cup Tegernsee 2024"]
[Site "Rottach-Egern"]
[Date "2024.04.09"]
[Round "4.6"]
[White "Vatter, Hans-Joachim"]
[Black "Scheckenbach, Franz"]
[Result "1/2-1/2"]
[ECO "D33"]
[WhiteElo "2211"]
[BlackElo "2038"]
[Annotator "RC"]
[PlyCount "36"]
[EventDate "2024.04.02"]
[EventType "swiss"]
[EventCountry "GER"]
[SourceTitle "playchess.com"]
[Source "ChessBase"]
[SourceQuality "1"]
[TimeControl "7800+30"]

1. c4 {[%emt 0:01:26]} e6 {[%emt 0:00:24]} 2. Nc3 {[%emt 0:00:34]} d5 {[%emt 0:00:18]} 3. d4 {[%emt 0:00:09]} c5 {[%emt 0:00:18]} 4. cxd5 {[%emt 0:00:24]} exd5 {[%emt 0:00:08]} 5. Nf3 {[%emt 0:03:00]} Nc6 {[%emt 0:00:14]} 6. g3 {[%emt 0:02:41]} Nf6 {[%emt 0:00:52]} 7. Bg2 {[%emt 0:02:08]} cxd4 {[%emt 0:00:45]} 8. Nxd4 {[%emt 0:00:10]} Bc5 {[%emt 0:00:53]} 9. Nb3 {[%emt 0:05:44]} Bb6 {[%emt 0:01:33]} 10. Nxd5 {[%emt 0:03:56]} Be6 {[%emt 0:01:24]} 11. Nxb6 {[%emt 0:02:29]} Qxd1+ {[%emt 0:00:31]} 12. Kxd1 {[%emt 0:00:07]} axb6 {[%emt 0:00:05]} 13. Bxc6+ {[%emt 0:05:50]} bxc6 {[%emt 0:01:04]} 14. Kc2 {[%emt 0:00:20]} Bf5+ {[%emt 0:05:30]} 15. Kd1 {[%emt 0:05:46]} Be6 {[%emt 0:03:46]} 16. Kc2 {[%emt 0:20:32]} Bf5+ {[%emt 0:00:15]} 17. Kd1 {[%emt 0:02:08]} Be6 {[%emt 0:00:53]} 18. Kc2 {[%emt 0:00:45]} Bf5+ {[%emt 0:05:58]} 1/2-1/2

[Event "12th Senioren-Cup Tegernsee 2024"]
[Site "Rottach-Egern"]
[Date "2024.04.09"]
[Round "4.9"]
[White "Haubt, Georg"]
[Black "Schatz, Christian"]
[Result "1/2-1/2"]
[ECO "E94"]
[WhiteElo "2013"]
[BlackElo "2158"]
[Annotator "RC"]
[PlyCount "108"]
[EventDate "2024.04.02"]
[EventType "swiss"]
[EventCountry "GER"]
[SourceTitle "playchess.com"]
[Source "ChessBase"]
[SourceQuality "1"]
[TimeControl "7800+30"]

1. d4 {[%emt 0:00:08]} d6 {[%emt 0:00:40]} 2. Nf3 {[%emt 0:01:49]} Nf6 {[%emt 0:00:44]} 3. c4 {[%emt 0:02:06]} g6 {[%emt 0:00:45]} 4. Nc3 {[%emt 0:00:17]} Bg7 {[%emt 0:00:16]} 5. e4 {[%emt 0:00:56]} O-O {[%emt 0:00:25]} 6. Be2 {[%emt 0:01:30]} e5 {[%emt 0:00:58]} 7. Bg5 {[%emt 0:02:23]} h6 {[%emt 0:02:38]} 8. Bh4 {[%emt 0:11:52]} Nbd7 {[%emt 0:14:27]} 9. O-O {[%emt 0:04:09]} c6 {[%emt 0:01:30]} 10. dxe5 {[%emt 0:07:04]} dxe5 {[%emt 0:02:34]} 11. b4 {[%emt 0:00:39]} a5 {[%emt 0:07:13]} 12. a3 {[%emt 0:01:26]} Qe7 {[%emt 0:12:00]} 13. Qb3 {[%emt 0:01:41]} g5 {[%emt 0:02:46]} 14. Bg3 {[%emt 0:00:06]} Nh5 {[%emt 0:00:40]} 15. Nd2 {[%emt 0:03:34]} Nf4 {[%emt 0:00:49]} 16. Bg4 {[%emt 0:12:21]} Rd8 {[%emt 0:05:51]} 17. Rfd1 {[%emt 0:08:27]} axb4 {[%emt 0:11:33]} 18. axb4 {[%emt 0:01:14]} Rxa1 {[%emt 0:00:55]} 19. Rxa1 {[%emt 0:00:01]} Nc5 {[%emt 0:05:05]} 20. bxc5 {[%emt 0:00:12]} Bxg4 {[%emt 0:00:12]} 21. Ncb1 {[%emt 0:23:57]} Nd3 {[%emt 0:11:21]} 22. Qb6 {[%emt 0:05:52]} Nxc5 {[%emt 0:02:15]} 23. f3 {[%emt 0:50:16]} Be6 {[%emt 0:07:55]} 24. Ra5 {[%emt 0:00:00]} Nd3 {[%emt 0:01:23]} 25. Na3 {[%emt 0:00:00]} Bf6 {[%emt 0:01:41]} 26. Nf1 {[%emt 0:00:00]} Rd7 {[%emt 0:03:49]} 27. Ne3 {[%emt 0:00:00]} Kg7 {[%emt 0:01:10]} 28. c5 {[%emt 0:00:00]} Rd4 {[%emt 0:02:29]} 29. Bf2 {[%emt 0:00:00]} Rb4 {[%emt 0:02:08]} 30. Qa7 {[%emt 0:00:00]} Qd7 {[%emt 0:01:29]} 31. Nec2 {[%emt 0:00:00]} Rb2 {[%emt 0:04:41]} 32. Be3 {[%emt 0:00:00]} Nf4 {[%emt 0:00:26]} 33. h3 {[%emt 0:00:00]} Bb3 {[%emt 0:08:09]} 34. Qb8 {[%emt 0:00:00]} Bxc2 {[%emt 0:05:21]} 35. Ra8 {[%emt 0:00:00]} Qd8 {[%emt 0:06:28]} 36. Qxd8 {[%emt 0:00:00]} Bxd8 {[%emt 0:00:05]} 37. Rxd8 {[%emt 0:00:00]} Bb3 {[%emt 0:02:34]} 38. Rd2 {[%emt 0:00:00]} Rxd2 {[%emt 0:01:23]} 39. Bxd2 {[%emt 0:00:00]} Kf6 {[%emt 0:00:43]} 40. g3 {[%emt 0:00:00]} Nxh3+ {[%emt 0:04:02]} 41. Kg2 {[%emt 0:00:00]} Be6 {[%emt 0:02:43]} 42. Nc2 {[%emt 0:00:00]} h5 {[%emt 0:00:20]} 43. Nb4 {[%emt 0:00:00]} h4 {[%emt 0:00:40]} 44. gxh4 {[%emt 0:00:00]} gxh4 {[%emt 0:00:07]} 45. Nd3 {[%emt 0:00:00]} Bc4 {[%emt 0:02:17]} 46. Kxh3 {[%emt 0:00:55]} Bxd3 {[%emt 0:00:08]} 47. Kxh4 {[%emt 0:00:02]} Be2 {[%emt 0:00:32]} 48. Kg3 {[%emt 0:00:31]} Ke6 {[%emt 0:00:35]} 49. f4 {[%emt 0:01:54]} f5 {[%emt 0:01:10]} 50. exf5+ {[%emt 0:00:37]} Kxf5 {[%emt 0:00:13]} 51. fxe5 {[%emt 0:01:07]} Kxe5 {[%emt 0:00:02]} 52. Kf2 {[%emt 0:00:25]} Ba6 {[%emt 0:00:13]} 53. Ba5 {[%emt 0:01:11]} Kd5 {[%emt 0:06:27]} 54. Bb6 {[%emt 0:00:10]} Kd4 {[%emt 0:00:00]} 1/2-1/2

[Event "12th Senioren-Cup Tegernsee 2024"]
[Site "Rottach-Egern"]
[Date "2024.04.09"]
[Round "4.10"]
[White "Moritz, Hartmut"]
[Black "Strobel, Walter"]
[Result "1-0"]
[ECO "B22"]
[WhiteElo "2012"]
[BlackElo "2147"]
[Annotator "RC"]
[PlyCount "63"]
[EventDate "2024.04.02"]
[EventType "swiss"]
[EventCountry "GER"]
[SourceTitle "playchess.com"]
[Source "ChessBase"]
[SourceQuality "1"]
[TimeControl "7800+30"]

1. e4 {[%emt 0:00:08]} c5 {[%emt 0:00:17]} 2. Nf3 {[%emt 0:00:37]} e6 {[%emt 0:00:54]} 3. c3 {[%emt 0:00:21]} Nf6 {[%emt 0:00:47]} 4. e5 {[%emt 0:01:02]} Nd5 {[%emt 0:00:07]} 5. a3 {[%emt 0:06:00]} d6 {[%emt 0:03:30]} 6. d4 {[%emt 0:04:23]} cxd4 {[%emt 0:01:16]} 7. cxd4 {[%emt 0:04:57]} Nd7 {[%emt 0:00:27]} 8. Bd3 {[%emt 0:04:43]} Qc7 {[%emt 0:02:38]} 9. O-O {[%emt 0:01:51]} b6 {[%emt 0:00:54]} 10. Qa4 {[%emt 0:13:22]} Be7 {[%emt 0:06:31]} 11. Bd2 {[%emt 0:08:28]} O-O {[%emt 0:01:47]} 12. Rc1 {[%emt 0:01:51]} Qb7 {[%emt 0:05:35]} 13. Bb5 {[%emt 0:05:24]} Nb8 {[%emt 0:00:24]} 14. Nc3 {[%emt 0:05:39]} Nc7 {[%emt 0:08:33]} 15. Bd3 {[%emt 0:04:34]} d5 {[%emt 0:04:15]} 16. Qc2 {[%emt 0:03:50]} h6 {[%emt 0:00:47]} 17. Bf4 {[%emt 0:11:03]} Rd8 {[%emt 0:03:47]} 18. Qd2 {[%emt 0:02:10]} Bf8 {[%emt 0:00:24]} 19. Bb1 {[%emt 0:01:49]} Bd7 {[%emt 0:04:25]} 20. Bxh6 {[%emt 0:04:51]} gxh6 {[%emt 0:00:07]} 21. Ng5 {[%emt 0:12:30]} Bg7 {[%emt 0:12:13]} 22. Nh7 {[%emt 0:04:18]} Ne8 {[%emt 0:00:28]} 23. Qf4 {[%emt 0:01:02]} Na6 {[%emt 0:04:11]} 24. Re1 {[%emt 0:05:24]} Qc7 {[%emt 0:04:43]} 25. Qg4 {[%emt 0:11:57]} Kh8 {[%emt 0:03:34]} 26. Re3 {[%emt 0:02:37]} Bc8 {[%emt 0:08:39]} 27. Rg3 {[%emt 0:02:02]} f5 {[%emt 0:00:54]} 28. Qg6 {[%emt 0:04:15]} Qe7 {[%emt 0:00:36]} 29. Rh3 {[%emt 0:01:09]} Rd7 {[%emt 0:06:57]} 30. Ng5 {[%emt 0:02:16]} Bf8 {[%emt 0:00:44]} 31. Nxe6 {[%emt 0:01:31]} Qf7 {[%emt 0:12:02]} 32. Nxf8 {[%emt 0:00:17]} 1-0